bitfinex/quotes_SOLUSD_20250108
["timestamp","ask_amount","ask_price","bid_price","bid_amount"]
[1736318816275,0.96006501,195.4,195.28,25.20817498]
[1736318816598,0.12549,195.37,195.27,0.12549]
[1736318816785,1.0854978,195.37,195.26,0.12549]
[1736318817168,0.12549,195.35,195.26,0.12549]
[1736318817369,1.08548973,195.35,195.24,25.20817498]
[1736318817585,0.12549,195.31,195.21,31.83977498]
[1736318817893,0.12549,195.31,195.22,25.33366498]
[1736318818078,1.08562514,195.31,195.22,25.33366498]
[1736318818280,0.12549,195.31,195.22,25.33366498]
[1736318818486,0.96017403,195.31,195.22,0.12549]
[1736318818676,0.12549,195.3,195.22,0.12549]
[1736318818875,0.12549,195.3,195.23,25.20817498]
[1736318819272,0.96010876,195.35,195.24,25.20817498]
[1736318819468,0.96010876,195.35,195.23,25.20817498]
[1736318819674,0.12549,195.28,195.23,0.12549]
[1736318820292,20.0,195.32,195.22,25.33366498]
[1736318820494,0.12549,195.3,195.21,6.6316]
[1736318820697,0.12549,195.28,195.19,1.5292]
[1736318820897,20.12549,195.26,195.1,136.4]
[1736318821088,0.12549,195.24,195.13,25.20817498]
[1736318821286,0.12549,195.24,195.14,25.33366498]
[1736318821501,0.12549,195.24,195.12,25.20817498]
[1736318821679,0.12549,195.2,195.1,25.20817498]
[1736318821879,1.08626284,195.2,195.1,25.20817498]
[1736318822076,1.08626284,195.2,195.09,25.20817498]
[1736318822474,1.08626284,195.2,195.07,7.9744]
[1736318822475,0.12549,195.15,195.07,7.9744]
[1736318822691,1.08649388,195.15,195.07,1.5053]
[1736318823080,0.96097893,195.18,195.07,1.5053]
[1736318823279,0.12549,195.17,195.07,1.5053]
[1736318823492,0.12549,195.15,195.07,1.5053]
[1736318823691,0.12549,195.15,195.05,25.20817498]
[1736318823977,0.96102693,195.16,195.04,25.20817498]
[1736318823978,0.12549,195.11,195.04,25.20817498]
[1736318824397,0.12549,195.15,195.04,25.20817498]
[1736318824578,0.12549,195.15,195.01,0.65622381]
[1736318824579,1.08652566,195.15,195.05,25.20817498]
[1736318824780,0.12549,195.15,195.06,0.6561069]
[1736318825003,2.82,195.19,195.09,25.20817498]
[1736318825203,2.94549,195.2,195.09,25.20817498]
[1736318825381,0.12549,195.18,195.09,25.20817498]
[1736318826001,0.12549,195.18,195.1,25.20817498]
[1736318826210,3.78081217,195.2,195.11,0.12549]
[1736318826405,0.12549,195.19,195.09,25.20817498]
[1736318826587,0.12549,195.17,195.09,25.20817498]
[1736318826781,0.12549,195.17,195.09,0.12549]
[1736318827307,0.12549,195.17,195.07,25.33366498]
[1736318827502,0.12549,195.16,195.07,25.33366498]
[1736318827688,0.12549,195.16,195.09,25.20817498]
[1736318828209,0.12549,195.18,195.09,25.20817498]
[1736318828387,0.12549,195.18,195.08,25.20817498]
[1736318828588,0.12549,195.14,195.05,25.20817498]
[1736318828895,1.08654693,195.14,195.02,25.20817498]
[1736318829089,1.08654693,195.14,195.03,25.33366498]
[1736318829299,1.08654693,195.14,195.05,0.12549]
[1736318830830,1.08654693,195.14,195.06,25.20817498]
[1736318831118,1.08654693,195.14,195.05,0.12549]
[1736318831328,0.12549,195.09,195.03,25.20817498]
[1736318831500,0.12549,195.09,195.0,48.25209137]
[1736318831706,1.08680542,195.09,195.0,23.04391639]
[1736318832086,0.12549,195.04,195.0,23.04391639]
[1736318832284,1.08699379,195.04,195.0,23.04391639]
[1736318832714,0.96155984,195.07,195.0,23.04391639]
[1736318832883,0.9613661,195.11,195.0,23.04391639]
[1736318833305,23.902374,195.1,195.0,23.04391639]
[1736318833521,0.12549,195.06,195.0,23.04391639]
[1736318833685,0.12549,195.06,195.01,0.12549]
[1736318833891,2.82,195.15,195.05,25.33366498]
[1736318834088,2.82,195.15,195.08,25.20817498]
[1736318834288,0.96095912,195.14,195.04,25.20817498]
[1736318834493,0.12549,195.09,195.03,7.8242]
[1736318834889,0.12549,195.09,195.03,33.03237498]
[1736318835118,0.96118171,195.12,195.04,0.12549]
[1736318835289,0.12549,195.11,195.04,25.33366498]
[1736318835707,0.12549,195.11,195.05,25.20817498]
[1736318835924,0.96114771,195.14,195.05,25.20817498]
[1736318836226,0.12549,195.13,195.04,25.33366498]
[1736318836416,0.12549,195.13,195.05,25.20817498]
[1736318836710,2.4924,195.18,195.05,25.20817498]
[1736318836711,2.82,195.16,195.07,25.20817498]
[1736318836901,0.9609334,195.17,195.08,0.12549]
[1736318837107,2.82,195.18,195.09,25.20817498]
[1736318837408,0.12549,195.18,195.08,25.33366498]
[1736318837601,1.08632864,195.18,195.08,0.12549]
[1736318837804,1.08632864,195.18,195.07,25.20817498]
[1736318838013,21.08632864,195.18,195.05,25.20817498]
[1736318838214,21.08632864,195.18,195.07,25.20817498]
[1736318838706,21.08632864,195.18,195.05,0.12549]
[1736318839014,21.08632864,195.18,195.07,25.20817498]
[1736318840691,1.08632864,195.18,195.08,0.12549]
[1736318840896,1.08632864,195.18,195.09,25.20817498]
[1736318841412,21.08632864,195.18,195.08,25.20817498]
[1736318841913,21.08632864,195.18,195.07,25.20817498]
[1736318842118,0.12549,195.13,195.05,25.33366498]
[1736318842301,1.0865593,195.13,195.03,33.03237498]
[1736318842499,1.0865593,195.13,195.05,25.20817498]
[1736318843218,0.12549,195.13,195.06,25.20817498]
[1736318843594,2.82,195.19,195.08,25.20817498]
[1736318843795,0.12549,195.17,195.08,25.20817498]
[1736318844040,0.12549,195.17,195.1,25.20817498]
[1736318844312,0.12549,195.18,195.09,25.33366498]
[1736318844519,20.0,195.21,195.09,25.33366498]
[1736318844520,0.12549,195.16,195.09,25.33366498]
[1736318844893,0.9608683,195.19,195.11,25.20817498]
[1736318845098,0.9608683,195.19,195.11,0.12549]
[1736318845623,0.9608683,195.19,195.08,25.20817498]
[1736318845624,0.12549,195.18,195.08,25.20817498]
[1736318845801,0.12549,195.18,195.1,0.12549]
[1736318846392,0.12549,195.14,195.07,25.20817498]
[1736318846807,0.12549,195.14,195.04,0.65580228]
[1736318846808,0.12549,195.14,195.08,25.20817498]
[1736318847207,0.12549,195.14,195.07,0.12549]
[1736318847525,0.12549,195.12,195.04,25.20817498]
[1736318848423,0.12549,195.12,195.05,25.20817498]
[1736318848610,0.12549,195.13,195.05,25.20817498]
[1736318848819,0.12549,195.13,195.08,25.20817498]
[1736318849010,0.12549,195.14,195.06,25.20817498]
[1736318849327,0.12549,195.12,195.04,25.20817498]
[1736318849499,0.12549,195.12,195.03,1.6145]
[1736318849699,0.12549,195.12,195.03,26.82267498]
[1736318849902,0.12549,195.12,195.03,1.6145]
[1736318850200,0.12549,195.12,195.0,23.04391639]
[1736318850438,0.12549,195.12,195.01,0.12549]
[1736318850608,0.12549,195.08,195.0,48.25209137]
[1736318850922,0.12549,195.08,195.01,0.12549]
[1736318851096,0.96132136,195.12,195.03,25.33366498]
[1736318851302,0.12549,195.11,195.03,0.12549]
[1736318851518,0.12549,195.11,195.03,25.20817498]
[1736318851708,0.12549,195.11,195.03,0.12549]
[1736318851904,0.12549,195.11,195.03,25.33366498]
[1736318852305,0.12549,195.11,195.03,0.12549]
[1736318852513,0.12549,195.11,195.03,25.33366498]
[1736318853010,2.76,195.13,195.05,25.33366498]
[1736318853214,2.76,195.13,195.06,25.20817498]
[1736318853518,0.12549,195.12,195.07,15.79119418]
[1736318853906,0.12549,195.15,195.06,15.91668418]
[1736318854625,0.12549,195.15,195.05,15.79119418]
[1736318854840,20.12549,195.13,195.02,15.79119418]
[1736318855129,0.12549,195.11,195.04,0.12549]
[1736318855710,0.12549,195.11,195.0,38.83511057]
[1736318855918,0.12549,195.1,195.0,38.83511057]
[1736318856226,0.12549,195.08,195.01,0.12549]
[1736318856543,0.12549,195.06,195.0,23.04391639]
[1736318857327,0.9614418,195.1,195.0,38.83511057]
[1736318857503,0.9614418,195.1,195.01,0.12549]
[1736318857703,0.12549,195.09,195.01,0.12549]
[1736318858121,0.12549,195.09,195.0,23.04391639]
[1736318859134,23.902374,195.09,195.0,23.04391639]
[1736318859319,0.12549,195.01,195.0,23.04391639]
[1736318859621,0.12549,195.04,195.0,23.04391639]
[1736318860141,0.12549,195.02,195.0,23.04391639]
[1736318860509,0.96161663,195.05,195.0,23.04391639]
[1736318860810,20.0,195.07,195.0,23.04391639]
[1736318861018,0.96125508,195.1,195.01,0.12549]
[1736318861416,20.96125508,195.1,195.0,23.04391639]
[1736318861719,20.96125508,195.1,195.0,38.83511057]
[1736318862034,0.12549,195.09,195.0,23.04391639]
[1736318865317,23.902374,195.09,195.0,23.04391639]
[1736318865522,0.12549,195.03,195.0,23.04391639]
[1736318865715,1.08713963,195.03,195.0,23.04391639]
[1736318868318,0.12549,195.01,195.0,23.04391639]
[1736318868518,24.86414313,195.01,195.0,23.04391639]
[1736318868719,57.35654313,195.01,195.0,23.04391639]
[1736318869511,27.35654313,195.01,195.0,23.04391639]
[1736318869715,57.35654313,195.01,195.0,23.04391639]
[1736318870018,27.35654313,195.01,195.0,23.04391639]
[1736318870536,24.86414313,195.01,195.0,23.04391639]
[1736318870725,3.84725913,195.01,195.0,23.04391639]
[1736318871334,23.84725913,195.01,195.0,23.04391639]
[1736318871538,3.84725913,195.01,195.0,23.04391639]
[1736318871736,77.62414313,195.01,195.0,23.04391639]
[1736318871923,47.62414313,195.01,195.0,23.04391639]
[1736318872128,77.62414313,195.01,195.0,23.04391639]
[1736318872335,82.62414313,195.01,195.0,23.04391639]
[1736318872943,77.62414313,195.01,195.0,23.04391639]
[1736318874245,53.84725913,195.01,195.0,23.04391639]
[1736318875248,23.84725913,195.01,195.0,23.04391639]
[1736318876029,3.84725913,195.01,195.0,23.04391639]
[1736318876543,27.62414313,195.01,195.0,23.04391639]
[1736318878328,0.12549,194.95,194.87,1.5351]
[1736318878529,1.08755838,194.95,194.87,1.5351]
[1736318879336,0.12549,194.93,194.87,1.5351]
[1736318880267,0.12549,194.91,194.87,1.5351]
[1736318880955,0.12549,194.92,194.87,1.5351]
[1736318881155,0.12549,194.92,194.88,25.28497079]
[1736318881369,0.12549,194.92,194.87,26.82007079]
[1736318881657,0.12549,194.96,194.87,26.82007079]
[1736318881851,0.12549,194.96,194.87,1.5351]
[1736318882645,0.12549,194.96,194.87,26.82007079]
[1736318882843,0.12549,194.96,194.87,1.5351]
[1736318883034,0.12549,194.96,194.88,25.41046079]
[1736318883353,0.96184541,194.98,194.88,25.41046079]
[1736318883731,0.12549,194.97,194.88,25.41046079]
[1736318883924,0.12549,194.97,194.91,25.41046079]
[1736318884355,20.12549,195.0,194.9,25.28497079]
[1736318884849,0.12549,195.0,194.91,0.12549]
[1736318885646,0.12549,194.98,194.88,15.81573621]
[1736318886447,20.12549,194.98,194.88,15.81573621]
[1736318886650,0.12549,194.96,194.87,17.35083621]
[1736318887359,0.12549,194.96,194.88,0.12549]
[1736318887557,0.12549,194.96,194.88,15.94122621]
[1736318887857,0.12549,194.96,194.88,0.12549]
[1736318888562,0.12549,194.96,194.88,15.94122621]
[1736318889678,0.12549,194.96,194.89,15.81573621]
[1736318890050,0.5,195.04,194.88,0.12549]
[1736318890051,30.0,195.09,194.93,0.12549]
[1736318890364,0.96162895,195.05,194.94,6.2338]
[1736318890543,0.12549,195.04,194.94,6.2338]
[1736318890865,0.12549,195.02,194.94,6.2338]
[1736318891358,2.76,195.04,194.95,0.12549]
[1736318891861,0.12549,195.02,194.95,0.12549]
[1736318892242,0.12549,195.03,194.95,0.12549]
[1736318892552,0.12549,194.99,194.9,15.81573621]
[1736318892743,1.08727153,194.99,194.89,22.04953621]
[1736318892945,1.08727153,194.99,194.9,15.81573621]
[1736318893366,1.08727153,194.99,194.91,0.12549]
[1736318893539,1.08727153,194.99,194.89,6.2338]
[1736318893738,0.12549,194.97,194.89,6.2338]
[1736318893962,1.08744188,194.97,194.89,6.2338]
[1736318894364,3.84744188,194.97,194.87,1.0351]
[1736318894948,0.12549,194.95,194.84,22.48083621]
[1736318895154,1.08758653,194.95,194.84,22.48083621]
[1736318896047,1.08758653,194.95,194.85,15.81573621]
[1736318896259,1.08758653,194.95,194.86,15.94122621]
[1736318897482,2.76,194.97,194.88,15.81573621]
[1736318897669,3.72194597,194.97,194.88,15.94122621]
[1736318897875,0.12549,194.96,194.9,15.81573621]
[1736318898244,0.12549,194.96,194.91,15.94122621]
[1736318898451,0.12549,194.96,194.92,15.81573621]
[1736318898651,2.76,195.04,194.94,15.94122621]
[1736318898872,0.12549,195.02,194.94,0.12549]
[1736318899252,0.12549,195.02,194.93,0.12549]
[1736318899673,0.12549,195.02,194.93,15.94122621]
[1736318900186,0.12549,195.02,194.93,0.12549]
[1736318900352,0.12549,195.02,194.93,15.94122621]
[1736318900670,0.12549,195.02,194.93,0.12549]
[1736318901372,0.12549,195.02,194.93,15.94122621]
[1736318901677,0.12549,195.02,194.93,17.56862621]
[1736318901975,20.12549,195.03,194.94,15.81573621]
[1736318902874,0.12549,195.01,194.93,1.75289]
[1736318903059,0.12549,194.99,194.89,15.81573621]
[1736318903265,0.12549,194.99,194.88,15.81573621]
[1736318903465,0.12549,194.99,194.89,0.12549]
[1736318903773,0.12549,194.99,194.88,15.81573621]
[1736318904155,0.12549,194.96,194.88,15.81573621]
[1736318904848,0.12549,194.96,194.89,0.12549]
[1736318905070,20.0,195.01,194.91,39.71811021]
[1736318905276,20.0,195.01,194.94,15.81573621]
[1736318905471,0.12549,195.02,194.94,15.81573621]
[1736318905675,0.12549,195.02,194.93,15.94122621]
[1736318913674,0.12549,195.02,194.95,0.12549]
[1736318913908,0.9614401,195.09,194.99,0.12549]
[1736318914107,0.9614401,195.09,195.01,0.12549]
[1736318914405,3.72119715,195.13,195.04,15.94122621]
[1736318914567,0.96101485,195.14,195.04,15.94122621]
[1736318915063,3.72103727,195.15,195.04,16.59735643]
[1736318915257,0.96095011,195.16,195.06,15.94122621]
[1736318915479,0.96095011,195.17,195.08,0.12549]
[1736318915695,20.0,195.15,195.08,0.12549]
[1736318915868,0.96095011,195.17,195.08,0.12549]
[1736318916265,0.12549,195.16,195.06,1.5854]
[1736318916769,0.12549,195.16,195.07,0.12549]
[1736318918091,0.12549,195.14,195.05,6.2228]
[1736318918290,0.12549,195.14,195.02,16.47177708]
[1736318918587,0.12549,195.12,195.03,23.902374]
[1736318918885,0.12549,195.12,195.01,23.62393621]
[1736318919108,0.12549,195.1,195.01,7.8082]
[1736318919321,0.12549,195.07,194.97,22.29383621]
[1736318919473,1.08689195,195.07,194.97,22.29383621]
[1736318919801,1.08689195,195.07,194.97,6.4781]
[1736318920307,1.08689195,195.07,194.95,1.5713]
[1736318920504,0.12549,195.02,194.95,1.5713]
[1736318920881,1.0870774,195.02,194.92,6.1179]
[1736318921090,1.0870774,195.02,194.93,0.12549]
[1736318921295,1.0870774,195.02,194.9,1.6422]
[1736318921296,21.0870774,195.02,194.9,1.6422]
[1736318921466,21.0870774,195.02,194.9,17.45793621]
[1736318921670,21.0870774,195.02,194.9,1.6422]
[1736318922798,21.0870774,195.02,194.85,0.6576955]
[1736318922968,21.0870774,195.02,194.88,39.71811021]
[1736318923169,21.0870774,195.02,194.88,15.94122621]
[1736318925590,21.0870774,195.02,194.88,23.776884]
[1736318925791,0.12549,194.97,194.87,15.81573621]
[1736318925994,0.12549,194.97,194.86,35.81573621]
[1736318925995,0.12549,194.96,194.86,35.81573621]
[1736318926200,0.12549,194.94,194.84,15.81573621]
[1736318926387,0.12549,194.94,194.85,0.12549]
[1736318926795,2.76,194.96,194.89,0.12549]
[1736318927182,0.12549,194.95,194.89,0.12549]
[1736318927387,0.12549,194.95,194.86,15.81573621]
[1736318927388,1.0873189,194.95,194.86,15.81573621]
[1736318927687,0.12549,194.95,194.87,15.94122621]
[1736318927888,0.12549,194.95,194.86,15.81573621]
[1736318928274,0.12549,194.95,194.87,0.12549]
[1736318929501,0.12549,194.95,194.87,15.81573621]
[1736318929703,0.12549,194.95,194.86,15.94122621]
[1736318930303,1.08744541,194.95,194.84,15.81573621]
[1736318931896,0.12549,194.95,194.88,0.12549]
[1736318932106,0.12549,194.95,194.88,15.81573621]
[1736318932799,0.12549,194.95,194.89,0.78324791]
[1736318933005,0.12549,194.95,194.88,15.81573621]
[1736318933200,0.12549,194.95,194.87,15.81573621]
[1736318933585,0.12549,194.95,194.88,0.12549]
[1736318933782,1.08737766,194.95,194.86,15.81573621]
[1736318934213,0.12549,194.95,194.87,0.12549]
[1736318934983,0.12549,194.93,194.83,23.74373621]
[1736318935183,0.12549,194.91,194.83,7.928]
[1736318935396,20.12549,194.91,194.81,0.12549]
[1736318935613,0.12549,194.89,194.8,16.47426831]
[1736318936003,0.12549,194.9,194.82,15.81573621]
[1736318936378,0.12549,194.9,194.85,0.12549]
[1736318936604,2.76,194.95,194.86,15.81573621]
[1736318936807,2.76,194.95,194.88,15.81573621]
[1736318936983,2.76,194.95,194.86,0.12549]
[1736318937399,0.96189189,194.94,194.83,20.0]
[1736318937603,0.96189189,194.94,194.85,15.81573621]
[1736318937803,0.12549,194.93,194.85,15.81573621]
[1736318938102,0.12549,194.93,194.86,0.12549]
[1736318938303,0.12549,194.94,194.86,0.12549]
[1736318938504,1.08744153,194.94,194.86,0.12549]
[1736318938692,0.12549,194.94,194.86,0.12549]
[1736318939479,0.12549,194.94,194.86,16.59940156]
[1736318939678,0.12549,194.94,194.86,15.94122621]
[1736318940306,0.12549,194.94,194.88,0.12549]
[1736318940603,0.12549,194.94,194.86,15.94122621]
[1736318940604,0.12549,194.94,194.86,15.81573621]
[1736318940803,0.12549,194.94,194.87,0.12549]
[1736318940989,0.12549,194.94,194.84,16.47351733]
[1736318941183,0.12549,194.92,194.81,15.81573621]
[1736318941389,0.12549,194.92,194.8,16.47395783]
[1736318942205,0.12549,194.92,194.81,15.81573621]
[1736318942402,0.12549,194.92,194.82,16.47420749]
[1736318942704,1.08763895,194.92,194.82,15.81573621]
[1736318943084,1.08763895,194.92,194.81,15.94122621]
[1736318943319,0.12549,194.9,194.78,15.81573621]
[1736318943533,1.08774083,194.9,194.78,0.65867159]
[1736318943823,0.12549,194.85,194.76,25.01033996]
[1736318943985,0.12549,194.85,194.77,25.56803196]
[1736318944179,0.12549,194.85,194.75,25.08528082]
[1736318944383,0.12549,194.83,194.75,25.41533275]
[1736318944586,0.12549,194.83,194.75,0.33005193]
[1736318944813,0.12549,194.83,194.75,15.81573621]
[1736318945106,0.12549,194.85,194.76,0.65899052]
[1736318945310,0.12549,194.85,194.81,15.94122621]
[1736318945486,20.0,194.89,194.81,15.94122621]
[1736318945687,0.12549,194.88,194.81,0.12549]
[1736318946501,0.12549,194.88,194.8,0.12549]
[1736318946904,0.12549,194.86,194.76,15.81573621]
[1736318947214,0.12549,194.86,194.74,16.47465792]
[1736318947517,0.12549,194.86,194.75,39.71811021]
[1736318948213,0.12549,194.86,194.75,40.2515096]
[1736318948697,0.96235583,194.9,194.78,0.12549]
[1736318948897,20.0,194.89,194.78,0.12549]
[1736318949201,0.96229476,194.88,194.78,0.12549]
[1736318949400,0.12549,194.87,194.78,0.12549]
[1736318949598,0.12549,194.87,194.8,0.12549]
[1736318949787,0.12549,194.87,194.8,16.59967779]
[1736318949999,0.12549,194.88,194.8,16.59967779]
[1736318950200,0.12549,194.88,194.82,0.12549]
[1736318951194,0.12549,194.88,194.84,0.12549]
[1736318951396,2.76,194.93,194.84,0.78373412]
[1736318951617,2.76,194.94,194.86,0.12549]
[1736318951916,2.76,194.94,194.88,0.12549]
[1736318952308,0.12549,194.93,194.88,0.12549]
[1736318952516,1.08736045,194.93,194.81,15.81573621]
[1736318952708,1.08736045,194.93,194.8,0.65791084]
[1736318952890,21.08736045,194.93,194.8,0.65791084]
[1736318953096,21.08736045,194.93,194.81,23.776884]
[1736318953293,21.08736045,194.93,194.82,0.12549]
[1736318954119,21.08736045,194.93,194.81,0.12549]
[1736318954497,21.08736045,194.93,194.78,0.65856522]
[1736318954696,0.12549,194.88,194.77,6.1151]
[1736318954895,1.08780678,194.88,194.77,0.65880351]
[1736318955116,0.12549,194.86,194.78,23.902374]
[1736318956417,0.12549,194.86,194.78,0.12549]
[1736318956607,0.12549,194.83,194.74,17.33043621]
[1736318957122,0.12549,194.83,194.75,0.65906939]
[1736318957317,0.12549,194.83,194.75,16.4748056]
[1736318958026,0.12549,194.83,194.76,23.902374]
[1736318958403,0.12549,194.83,194.76,39.71811021]
[1736318958604,0.12549,194.83,194.76,40.37698279]
[1736318960101,0.12549,194.83,194.76,24.56124658]
[1736318960695,20.0,194.84,194.76,40.37698279]
[1736318960920,0.12549,194.83,194.76,40.37698279]
[1736318961100,0.12549,194.83,194.74,1.5147]
[1736318961101,0.12549,194.83,194.74,17.98929124]
[1736318961702,0.12549,194.83,194.77,0.12549]
[1736318962426,0.12549,194.83,194.76,0.12549]
[1736318964308,2.9924,194.87,194.76,15.94122621]
[1736318964529,1.46234255,194.91,194.78,39.71811021]
[1736318964712,2.76,194.9,194.8,23.902374]
[1736318965010,2.76,194.9,194.74,6.5147]
[1736318965011,0.12549,194.88,194.75,16.47429035]
[1736318965199,0.12549,194.86,194.76,23.902374]
[1736318965609,0.12549,194.88,194.76,39.71811021]
[1736318966025,0.12549,194.88,194.78,0.12549]
[1736318966737,0.12549,194.88,194.78,23.902374]
[1736318967507,0.12549,194.88,194.8,23.902374]
[1736318967925,20.0,194.89,194.82,0.12549]
[1736318968138,0.12549,194.89,194.81,0.12549]
[1736318968517,20.12549,194.89,194.81,0.12549]
[1736318968704,0.12549,194.89,194.81,0.12549]
[1736318968909,0.12549,194.89,194.81,0.78394243]
[1736318969431,0.12549,194.9,194.81,0.78394243]
[1736318969631,0.12549,194.9,194.77,23.776884]
[1736318969632,0.12549,194.88,194.77,23.776884]
[1736318969811,1.08779823,194.88,194.73,16.47452261]
[1736318970020,0.12549,194.86,194.73,0.6587864]
[1736318970339,0.12549,194.84,194.72,0.6590882]
[1736318970633,0.12549,194.82,194.72,0.6590882]
[1736318971132,0.12549,194.82,194.72,16.47482441]
[1736318971434,0.12549,194.82,194.73,0.12549]
[1736318971613,0.12549,194.82,194.75,0.12549]
[1736318971808,0.12549,194.82,194.73,0.65910941]
[1736318972316,0.12549,194.82,194.74,0.12549]
[1736318973510,0.12549,194.82,194.74,0.78473033]
[1736318973837,0.12549,194.82,194.74,0.12549]
[1736318974138,0.12549,194.82,194.71,15.81573621]
[1736318974433,0.12549,194.82,194.72,0.65927571]
[1736318974806,0.12549,194.82,194.73,39.71811021]
[1736318975009,0.12549,194.82,194.73,23.902374]
[1736318977333,20.12549,194.8,194.69,0.65927264]
[1736318977532,0.12549,194.78,194.65,0.65961246]
[1736318977832,0.12549,194.78,194.67,15.81573621]
[1736318978040,2.76,194.77,194.69,23.776884]
[1736318978212,0.12549,194.76,194.69,23.776884]
[1736318978813,0.12549,194.76,194.7,0.12549]
[1736318979227,1.08826473,194.76,194.64,5.0]
[1736318979423,1.08826473,194.76,194.65,16.47571275]
[1736318979732,1.08826473,194.76,194.66,39.59262021]
[1736318979932,0.12549,194.76,194.68,23.776884]
[1736318980122,0.5,194.81,194.74,23.776884]
[1736318980318,2.4924,194.86,194.76,23.776884]
[1736318980319,5.7524,194.86,194.76,23.776884]
[1736318980530,5.7524,194.86,194.76,39.59262021]
[1736318980728,2.9924,194.86,194.79,0.12549]
[1736318980926,2.76,194.85,194.79,0.12549]
[1736318981131,2.76,194.85,194.73,0.65870255]
[1736318981132,0.12549,194.82,194.76,15.81573621]
[1736318981328,0.12549,194.82,194.77,16.47473088]
[1736318981540,0.12549,194.82,194.79,15.81573621]
[1736318981712,2.76,194.85,194.8,23.776884]
[1736318981915,0.12549,194.84,194.79,0.12549]
[1736318982116,0.12549,194.84,194.8,23.776884]
[1736318982424,0.5,194.9,194.82,23.776884]
[1736318982425,2.76,194.88,194.82,23.776884]
[1736318982731,0.5,194.9,194.8,23.902374]
[1736318982732,2.88549,194.89,194.8,23.902374]
[1736318982931,0.12549,194.87,194.8,23.902374]
[1736318983136,0.12549,194.87,194.8,0.12549]
[1736318983321,0.12549,194.87,194.77,15.81573621]
[1736318983322,0.12549,194.87,194.78,40.37691133]
[1736318983639,0.12549,194.87,194.8,23.902374]
[1736318984016,2.76,194.89,194.82,23.902374]
[1736318984417,0.12549,194.88,194.77,15.81573621]
[1736318984614,1.08779021,194.88,194.77,15.81573621]
[1736318984825,1.08779021,194.88,194.78,23.902374]
[1736318985520,0.12549,194.88,194.8,39.71811021]
[1736318985722,0.12549,194.88,194.81,0.65842504]
[1736318985920,0.96208844,194.97,194.86,15.81573621]
[1736318986115,0.5,195.0,194.89,0.12549]
[1736318986116,0.96176104,194.99,194.89,0.12549]
[1736318986320,0.96176104,194.99,194.84,2.4924]
[1736318986547,20.12549,194.98,194.84,15.81573621]
[1736318986765,0.12549,194.96,194.86,23.902374]
[1736318987157,0.12549,194.94,194.81,23.30813621]
[1736318987358,1.08759565,194.94,194.81,23.30813621]
[1736318987523,0.12549,194.89,194.82,23.776884]
[1736318987727,0.12549,194.89,194.8,0.65848306]
[1736318988148,0.12549,194.89,194.81,23.902374]
[1736318988458,20.12549,194.89,194.81,23.902374]
[1736318988666,20.12549,194.89,194.81,23.776884]
[1736318988956,0.12549,194.87,194.8,23.776884]
[1736318989120,0.12549,194.87,194.78,15.81573621]
[1736318989324,0.12549,194.88,194.79,0.12549]
[1736318989619,0.12549,194.88,194.8,23.776884]
[1736318990330,23.26,194.91,194.82,23.776884]
[1736318990633,23.26,194.91,194.83,0.12549]
[1736318990846,0.12549,194.9,194.83,0.12549]
[1736318991031,0.12549,194.88,194.83,0.12549]
[1736318991853,0.12549,194.88,194.83,23.902374]
[1736318992344,0.12549,194.88,194.83,40.37647615]
[1736318993524,2.76,194.91,194.83,40.37647615]
[1736318993728,0.12549,194.9,194.85,23.902374]
[1736318994139,0.12549,194.93,194.85,23.902374]
[1736318994832,20.12549,194.94,194.85,23.902374]
[1736318995345,0.5,194.96,194.87,23.902374]
[1736318995548,20.0,194.94,194.87,23.902374]
[1736318995849,0.12549,194.93,194.87,23.902374]
[1736318996048,0.12549,194.93,194.89,39.71811021]
[1736318996265,0.9616937,195.03,194.92,39.71811021]
[1736318996557,0.12549,195.0,194.89,15.81573621]
[1736318996754,1.08724522,195.0,194.88,15.81573621]
[1736318997051,1.08724522,195.0,194.89,23.902374]
[1736318997635,0.12549,195.01,194.9,0.12549]
[1736318999159,0.12549,195.03,194.9,0.12549]
[1736318999757,0.30407484,195.04,194.9,0.12549]
[1736318999758,0.12549,195.01,194.9,0.12549]
[1736318999960,0.42956484,195.01,194.9,0.12549]
[1736319000161,20.42956484,195.01,194.9,0.12549]